[Event "*** SCC Grand Prix: Titled Tuesday Blitz"]
[Site "Chess.com"]
[Date "2020.07.07"]
[Round "3"]
[White "DenisQ"]
[Black "Jumbo"]
[Result "0-1"]
[WhiteElo "2643"]
[BlackElo "2901"]
[TimeControl "180+1"]
[EndTime "10:28:37 PDT"]
[Termination "Jumbo won by resignation"]

1. Nf3 {[%clk 0:03:00.9]} 1... Nf6 {[%clk 0:02:50.3]} 2. c4 {[%clk 0:03:01]}
2... e6 {[%clk 0:02:47.3]} 3. g3 {[%clk 0:02:58.3]} 3... d5 {[%clk 0:02:44.9]}
4. Bg2 {[%clk 0:02:58.3]} 4... d4 {[%clk 0:02:44.1]} 5. O-O {[%clk 0:02:57]}
5... c5 {[%clk 0:02:44.6]} 6. e3 {[%clk 0:02:56.3]} 6... Nc6 {[%clk 0:02:45.2]}
7. exd4 {[%clk 0:02:56.3]} 7... cxd4 {[%clk 0:02:46.1]} 8. Re1 {[%clk
0:02:56.4]} 8... Bd6 {[%clk 0:02:42.2]} 9. d3 {[%clk 0:02:55.3]} 9... O-O {[%clk
0:02:41.4]} 10. Na3 {[%clk 0:02:46.6]} 10... Nd7 {[%clk 0:01:50.6]} 11. Rb1
{[%clk 0:02:13.2]} 11... e5 {[%clk 0:01:35.1]} 12. Nb5 {[%clk 0:02:11.8]} 12...
Bc5 {[%clk 0:01:30.1]} 13. Bd2 {[%clk 0:02:05.8]} 13... a6 {[%clk 0:01:22.6]}
14. b4 {[%clk 0:01:51.9]} 14... axb5 {[%clk 0:01:02.2]} 15. cxb5 {[%clk
0:01:51.1]} 15... Nxb4 {[%clk 0:01:02.3]} 16. Bxb4 {[%clk 0:01:50.4]} 16... Bxb4
{[%clk 0:01:01.9]} 17. Rxb4 {[%clk 0:01:49.7]} 17... Rxa2 {[%clk 0:01:02.4]} 18.
Qb3 {[%clk 0:01:29.6]} 18... Qa5 {[%clk 0:01:01.6]} 19. h3 {[%clk 0:00:53.5]}
19... Nc5 {[%clk 0:00:55.3]} 20. Qc4 {[%clk 0:00:49.3]} 20... Nxd3 {[%clk
0:00:55.7]} 21. Qxd3 {[%clk 0:00:44.6]} 21... Qxb4 {[%clk 0:00:55.3]} 22. Rxe5
{[%clk 0:00:45.3]} 22... Qc3 {[%clk 0:00:43.3]} 23. Qxd4 {[%clk 0:00:44.4]}
23... Qxd4 {[%clk 0:00:23.7]} 24. Nxd4 {[%clk 0:00:44.9]} 24... Rd8 {[%clk
0:00:23.3]} 25. Re7 {[%clk 0:00:37.4]} 25... Kf8 {[%clk 0:00:22.6]} 26. Rc7
{[%clk 0:00:37.2]} 26... Bxh3 {[%clk 0:00:10.3]} 27. Bxh3 {[%clk 0:00:30.4]}
27... Rxd4 {[%clk 0:00:10.4]} 28. Rxb7 {[%clk 0:00:31]} 28... Rd1+ {[%clk
0:00:10]} 29. Kg2 {[%clk 0:00:28.9]} 29... Rdd2 {[%clk 0:00:10.5]} 0-1

[Event "*** SCC Grand Prix: Titled Tuesday Blitz"]
[Site "Chess.com"]
[Date "2020.07.07"]
[Round "3"]
[White "Mikhal867"]
[Black "Zarinur"]
[Result "1-0"]
[WhiteElo "2360"]
[BlackElo "2108"]
[TimeControl "180+1"]
[EndTime "10:28:39 PDT"]
[Termination "Mikhal867 won on time"]

1. c4 {[%clk 0:02:58.3]} 1... e5 {[%clk 0:02:59.1]} 2. Nc3 {[%clk 0:02:57.6]}
2... Bb4 {[%clk 0:02:58.1]} 3. Nd5 {[%clk 0:02:56.9]} 3... Be7 {[%clk
0:02:57.2]} 4. g3 {[%clk 0:02:57]} 4... c6 {[%clk 0:02:52.4]} 5. Nxe7 {[%clk
0:02:55.6]} 5... Nxe7 {[%clk 0:02:48.3]} 6. d4 {[%clk 0:02:55.4]} 6... e4 {[%clk
0:02:38.3]} 7. d5 {[%clk 0:02:53.1]} 7... cxd5 {[%clk 0:02:35]} 8. cxd5 {[%clk
0:02:52.5]} 8... Qa5+ {[%clk 0:02:34.1]} 9. Bd2 {[%clk 0:02:52]} 9... Qxd5
{[%clk 0:02:32.7]} 10. Bg2 {[%clk 0:02:50]} 10... Nbc6 {[%clk 0:02:17.5]} 11.
Nh3 {[%clk 0:02:48.9]} 11... Qf5 {[%clk 0:01:59.3]} 12. Nf4 {[%clk 0:02:42.6]}
12... O-O {[%clk 0:01:53.7]} 13. g4 {[%clk 0:02:32.1]} 13... Qxg4 {[%clk
0:01:48.3]} 14. Bxe4 {[%clk 0:02:27.7]} 14... d5 {[%clk 0:01:39]} 15. Bf3 {[%clk
0:02:24.7]} 15... Qf5 {[%clk 0:01:32.2]} 16. Rg1 {[%clk 0:02:24]} 16... Nd4
{[%clk 0:01:19.4]} 17. Bg4 {[%clk 0:02:20.6]} 17... Qe4 {[%clk 0:01:13.9]} 18.
f3 {[%clk 0:02:06.8]} 18... Qe5 {[%clk 0:01:05.1]} 19. Bc3 {[%clk 0:02:04.7]}
19... Qxf4 {[%clk 0:00:58.3]} 20. Qxd4 {[%clk 0:02:00]} 20... Qxd4 {[%clk
0:00:55.1]} 21. Bxd4 {[%clk 0:02:00.1]} 21... Nc6 {[%clk 0:00:51.9]} 22. Bxg7
{[%clk 0:01:58.1]} 22... Re8 {[%clk 0:00:19.9]} 23. Bf6 {[%clk 0:01:49.2]} 23...
Bxg4 {[%clk 0:00:15.7]} 24. Rxg4+ {[%clk 0:01:48.2]} 24... Kf8 {[%clk
0:00:16.1]} 25. Rg7 {[%clk 0:01:36.7]} 25... Re6 {[%clk 0:00:13.7]} 26. Rxh7
{[%clk 0:01:36.7]} 26... Rxf6 {[%clk 0:00:13.7]} 27. Rh8+ {[%clk 0:01:36.7]}
27... Kg7 {[%clk 0:00:13.6]} 28. Rxa8 {[%clk 0:01:35.9]} 28... Nd4 {[%clk
0:00:13.1]} 29. Rd1 {[%clk 0:01:30.2]} 29... Nc2+ {[%clk 0:00:11.2]} 30. Kd2
{[%clk 0:01:28.8]} 30... Nb4 {[%clk 0:00:10.4]} 31. a3 {[%clk 0:01:27.1]} 31...
Nc6 {[%clk 0:00:06.8]} 32. Rg1+ {[%clk 0:01:26.7]} 32... Kh7 {[%clk 0:00:06.9]}
33. Rgg8 {[%clk 0:01:20.9]} 33... Ne5 {[%clk 0:00:03.1]} 34. Rh8+ {[%clk
0:01:18.9]} 34... Kg6 {[%clk 0:00:02.3]} 35. Rag8+ {[%clk 0:01:12.8]} 35... Kf5
{[%clk 0:00:02]} 36. Rh5+ {[%clk 0:01:11.9]} 36... Kf4 {[%clk 0:00:02.1]} 37.
e3+ {[%clk 0:01:10.9]} 37... Kxf3 {[%clk 0:00:01.2]} 38. Rxe5 {[%clk 0:01:09.4]}
38... Rh6 {[%clk 0:00:01.7]} 39. Rf5+ {[%clk 0:01:06.6]} 39... Ke4 {[%clk
0:00:01.7]} 40. Rf4+ {[%clk 0:01:05.8]} 40... Ke5 {[%clk 0:00:02]} 41. Rg5+
{[%clk 0:01:05.1]} 1-0

[Event "*** SCC Grand Prix: Titled Tuesday Blitz"]
[Site "Chess.com"]
[Date "2020.07.07"]
[Round "3"]
[White "kushagramohan"]
[Black "Yoshikrov"]
[Result "1-0"]
[WhiteElo "2708"]
[BlackElo "2084"]
[TimeControl "180+1"]
[EndTime "10:28:43 PDT"]
[Termination "kushagramohan won on time"]

1. e4 {[%clk 0:03:00.9]} 1... c5 {[%clk 0:02:59.1]} 2. Nf3 {[%clk 0:02:59.6]}
2... d6 {[%clk 0:02:58]} 3. d4 {[%clk 0:03:00.2]} 3... cxd4 {[%clk 0:02:56.9]}
4. Nxd4 {[%clk 0:03:01.1]} 4... Nf6 {[%clk 0:02:56.4]} 5. Nc3 {[%clk 0:03:01.1]}
5... a6 {[%clk 0:02:56.4]} 6. f3 {[%clk 0:03:01.7]} 6... e5 {[%clk 0:02:55.6]}
7. Nb3 {[%clk 0:03:02.2]} 7... h5 {[%clk 0:02:54.6]} 8. Be3 {[%clk 0:03:02.3]}
8... Be6 {[%clk 0:02:53.9]} 9. Nd5 {[%clk 0:03:02.8]} 9... Bxd5 {[%clk
0:02:39.1]} 10. exd5 {[%clk 0:03:03.7]} 10... Nbd7 {[%clk 0:02:39.4]} 11. Be2
{[%clk 0:03:03.1]} 11... b5 {[%clk 0:02:15.2]} 12. a4 {[%clk 0:03:00.5]} 12...
b4 {[%clk 0:02:12.7]} 13. a5 {[%clk 0:02:58.5]} 13... Be7 {[%clk 0:02:01.8]} 14.
Ra4 {[%clk 0:02:55.9]} 14... Nc5 {[%clk 0:01:32.8]} 15. Nxc5 {[%clk 0:02:48.3]}
15... dxc5 {[%clk 0:01:32.9]} 16. Bc4 {[%clk 0:02:49.2]} 16... Bd6 {[%clk
0:01:20.8]} 17. O-O {[%clk 0:02:47.3]} 17... O-O {[%clk 0:01:20]} 18. Qd3 {[%clk
0:02:45.2]} 18... Qc8 {[%clk 0:01:13.9]} 19. Bg5 {[%clk 0:02:39.7]} 19... e4
{[%clk 0:00:47.4]} 20. fxe4 {[%clk 0:02:11.3]} 20... Ng4 {[%clk 0:00:46.8]} 21.
h3 {[%clk 0:02:11.2]} 21... Ne5 {[%clk 0:00:46.6]} 22. Qe2 {[%clk 0:02:11.5]}
22... Nxc4 {[%clk 0:00:33.7]} 23. Qxc4 {[%clk 0:02:10.9]} 23... Qe8 {[%clk
0:00:33.8]} 24. b3 {[%clk 0:02:01.9]} 24... Qe5 {[%clk 0:00:19]} 25. Bf4 {[%clk
0:02:01.6]} 25... Qe7 {[%clk 0:00:19.1]} 26. Raa1 {[%clk 0:01:48]} 26... Rfe8
{[%clk 0:00:17.1]} 27. Bxd6 {[%clk 0:01:46.3]} 27... Qxd6 {[%clk 0:00:17.2]} 28.
Rae1 {[%clk 0:01:46.9]} 28... Re5 {[%clk 0:00:17.1]} 29. Rf2 {[%clk 0:01:45.2]}
29... Rae8 {[%clk 0:00:17.1]} 30. Rfe2 {[%clk 0:01:45.4]} 30... f6 {[%clk
0:00:12.8]} 31. Qd3 {[%clk 0:01:44.8]} 31... R8e7 {[%clk 0:00:10.9]} 32. Kh1
{[%clk 0:01:44.8]} 32... Re8 {[%clk 0:00:11.2]} 33. Re3 {[%clk 0:01:41.5]} 33...
R8e7 {[%clk 0:00:09.3]} 34. c3 {[%clk 0:01:35.3]} 34... bxc3 {[%clk 0:00:08.3]}
35. Qxc3 {[%clk 0:01:36.2]} 35... Re8 {[%clk 0:00:06.7]} 36. Qc4 {[%clk
0:01:36.3]} 36... R8e7 {[%clk 0:00:06.4]} 37. Rc1 {[%clk 0:01:36.6]} 37... f5
{[%clk 0:00:04.8]} 38. Qxc5 {[%clk 0:01:33.2]} 38... Qxc5 {[%clk 0:00:04.7]} 39.
Rxc5 {[%clk 0:01:34.1]} 39... Rxe4 {[%clk 0:00:05.3]} 40. Rxe4 {[%clk
0:01:33.9]} 40... Rxe4 {[%clk 0:00:05.7]} 41. d6 {[%clk 0:01:31.6]} 41... Rd4
{[%clk 0:00:04.3]} 42. Rxf5 {[%clk 0:01:30.7]} 42... Rxd6 {[%clk 0:00:02.4]} 43.
Rxh5 {[%clk 0:01:31]} 43... Rd3 {[%clk 0:00:02.9]} 44. b4 {[%clk 0:01:31]} 44...
Rb3 {[%clk 0:00:03.3]} 45. Rh4 {[%clk 0:01:30.4]} 45... Kf7 {[%clk 0:00:03.7]}
46. Rc4 {[%clk 0:01:28.1]} 46... g6 {[%clk 0:00:01.1]} 47. Rc7+ {[%clk
0:01:27.2]} 1-0

[Event "*** SCC Grand Prix: Titled Tuesday Blitz"]
[Site "Chess.com"]
[Date "2020.07.07"]
[Round "3"]
[White "ajian"]
[Black "tsvet2005"]
[Result "1-0"]
[WhiteElo "2430"]
[BlackElo "2631"]
[TimeControl "180+1"]
[EndTime "10:28:43 PDT"]
[Termination "ajian won by resignation"]

1. d4 {[%clk 0:03:00.9]} 1... d5 {[%clk 0:03:00.1]} 2. c4 {[%clk 0:03:00.2]}
2... e6 {[%clk 0:03:00.7]} 3. Nc3 {[%clk 0:03:00.2]} 3... c6 {[%clk 0:03:01.2]}
4. e3 {[%clk 0:02:59.7]} 4... Nf6 {[%clk 0:03:01.3]} 5. Nf3 {[%clk 0:02:53.4]}
5... Nbd7 {[%clk 0:03:00.9]} 6. Qc2 {[%clk 0:02:53.5]} 6... Bd6 {[%clk
0:03:00.3]} 7. b3 {[%clk 0:02:53.7]} 7... O-O {[%clk 0:03:00.2]} 8. Bd3 {[%clk
0:02:53.4]} 8... Qe7 {[%clk 0:02:57.3]} 9. O-O {[%clk 0:02:48.8]} 9... Re8
{[%clk 0:02:51]} 10. e4 {[%clk 0:02:21.7]} 10... dxe4 {[%clk 0:02:42.1]} 11.
Nxe4 {[%clk 0:02:22.6]} 11... Nxe4 {[%clk 0:02:39.5]} 12. Bxe4 {[%clk
0:02:23.5]} 12... f5 {[%clk 0:02:40]} 13. Bd3 {[%clk 0:02:21.4]} 13... c5 {[%clk
0:02:40.5]} 14. Re1 {[%clk 0:02:14.3]} 14... Qf8 {[%clk 0:01:58]} 15. Bb2 {[%clk
0:02:05]} 15... cxd4 {[%clk 0:01:55]} 16. Nxd4 {[%clk 0:02:04.6]} 16... Nc5
{[%clk 0:01:52.6]} 17. Bf1 {[%clk 0:01:49]} 17... a6 {[%clk 0:01:42.9]} 18. b4
{[%clk 0:01:41.6]} 18... Ne4 {[%clk 0:01:35.2]} 19. c5 {[%clk 0:01:41.4]} 19...
Bc7 {[%clk 0:01:34.2]} 20. Bc4 {[%clk 0:01:37]} 20... Kh8 {[%clk 0:01:13.8]} 21.
f3 {[%clk 0:01:03.2]} 21... e5 {[%clk 0:01:01.1]} 22. Nxf5 {[%clk 0:00:44.6]}
22... Nxc5 {[%clk 0:00:38.5]} 23. Nxg7 {[%clk 0:00:40.8]} 23... Kxg7 {[%clk
0:00:39.4]} 24. bxc5 {[%clk 0:00:39.9]} 24... Qxc5+ {[%clk 0:00:40.3]} 25. Kh1
{[%clk 0:00:37.7]} 25... b5 {[%clk 0:00:36]} 26. Qe4 {[%clk 0:00:22.4]} 26...
Ra7 {[%clk 0:00:15.3]} 27. Bd3 {[%clk 0:00:21.9]} 27... Rh8 {[%clk 0:00:09.8]}
28. Rac1 {[%clk 0:00:17.4]} 28... Qd6 {[%clk 0:00:06.2]} 29. Rxc7+ {[%clk
0:00:16.7]} 1-0

[Event "*** SCC Grand Prix: Titled Tuesday Blitz"]
[Site "Chess.com"]
[Date "2020.07.07"]
[Round "3"]
[White "ENajer77"]
[Black "albano87"]
[Result "0-1"]
[WhiteElo "2704"]
[BlackElo "2444"]
[TimeControl "180+1"]
[EndTime "10:28:44 PDT"]
[Termination "albano87 won by resignation"]

1. e4 {[%clk 0:00:41.7]} 1... c5 {[%clk 0:02:50.1]} 2. Nc3 {[%clk 0:00:42.6]}
2... Nc6 {[%clk 0:02:50.5]} 3. Nf3 {[%clk 0:00:41.7]} 3... d6 {[%clk 0:02:50.5]}
4. d4 {[%clk 0:00:42.3]} 4... cxd4 {[%clk 0:02:51.4]} 5. Nxd4 {[%clk 0:00:42.9]}
5... Nf6 {[%clk 0:02:52.3]} 6. Bg5 {[%clk 0:00:42.9]} 6... Bd7 {[%clk
0:02:52.7]} 7. Qd2 {[%clk 0:00:43.1]} 7... Rc8 {[%clk 0:02:52.6]} 8. O-O-O
{[%clk 0:00:43.6]} 8... Nxd4 {[%clk 0:02:52.1]} 9. Qxd4 {[%clk 0:00:43.7]} 9...
Qa5 {[%clk 0:02:53]} 10. Bd2 {[%clk 0:00:43.3]} 10... a6 {[%clk 0:02:52]} 11.
Kb1 {[%clk 0:00:41.6]} 11... Qc5 {[%clk 0:02:51.1]} 12. Qxc5 {[%clk 0:00:34.7]}
12... Rxc5 {[%clk 0:02:48.8]} 13. f3 {[%clk 0:00:35.3]} 13... g6 {[%clk
0:02:41.3]} 14. Be3 {[%clk 0:00:35.7]} 14... Rc8 {[%clk 0:02:40.6]} 15. Bd4
{[%clk 0:00:35.7]} 15... Bg7 {[%clk 0:02:40.8]} 16. Nd5 {[%clk 0:00:35.5]} 16...
Rc6 {[%clk 0:02:34]} 17. Nxf6+ {[%clk 0:00:33.4]} 17... Bxf6 {[%clk 0:02:34.9]}
18. Bxf6 {[%clk 0:00:33.7]} 18... exf6 {[%clk 0:02:35.8]} 19. Rd2 {[%clk
0:00:33.7]} 19... Ke7 {[%clk 0:02:31.4]} 20. Be2 {[%clk 0:00:33.4]} 20... Rhc8
{[%clk 0:02:32]} 21. Rhd1 {[%clk 0:00:33.4]} 21... f5 {[%clk 0:02:31.5]} 22.
exf5 {[%clk 0:00:33.5]} 22... Bxf5 {[%clk 0:02:31.2]} 23. Rc1 {[%clk 0:00:33.2]}
23... h5 {[%clk 0:02:24.5]} 24. g3 {[%clk 0:00:32.9]} 24... b5 {[%clk
0:02:21.2]} 25. Bd3 {[%clk 0:00:33.1]} 25... Bxd3 {[%clk 0:01:59.9]} 26. Rxd3
{[%clk 0:00:34]} 26... b4 {[%clk 0:01:57.6]} 27. b3 {[%clk 0:00:33.2]} 27... a5
{[%clk 0:01:57.1]} 28. Kb2 {[%clk 0:00:32.5]} 28... Rc3 {[%clk 0:01:57.2]} 29.
Re1+ {[%clk 0:00:31.4]} 29... Kd7 {[%clk 0:01:53.9]} 30. Rxc3 {[%clk 0:00:29.7]}
30... Rxc3 {[%clk 0:01:53.9]} 31. Rf1 {[%clk 0:00:29.5]} 31... Re3 {[%clk
0:01:54]} 32. Rf2 {[%clk 0:00:29.4]} 32... d5 {[%clk 0:01:54.2]} 33. a3 {[%clk
0:00:29.8]} 33... Kd6 {[%clk 0:01:53.7]} 34. axb4 {[%clk 0:00:30.7]} 34... axb4
{[%clk 0:01:54.4]} 35. Kc1 {[%clk 0:00:29.8]} 35... d4 {[%clk 0:01:53]} 36. Kd2
{[%clk 0:00:30.4]} 36... Kd5 {[%clk 0:01:53.8]} 37. Rf1 {[%clk 0:00:27.5]} 37...
g5 {[%clk 0:01:50.7]} 38. f4 {[%clk 0:00:26.3]} 38... g4 {[%clk 0:01:50.6]} 39.
Ra1 {[%clk 0:00:26]} 39... h4 {[%clk 0:01:37]} 40. Ra5+ {[%clk 0:00:24.6]} 40...
Ke4 {[%clk 0:01:28.7]} 41. gxh4 {[%clk 0:00:20]} 41... Rh3 {[%clk 0:01:28.6]}
42. Re5+ {[%clk 0:00:09.4]} 42... Kxf4 {[%clk 0:01:28.4]} 43. Re2 {[%clk
0:00:10.3]} 43... Rxh4 {[%clk 0:01:06.5]} 44. Rf2+ {[%clk 0:00:10]} 44... Ke4
{[%clk 0:01:07]} 0-1

[Event "*** SCC Grand Prix: Titled Tuesday Blitz"]
[Site "Chess.com"]
[Date "2020.07.07"]
[Round "3"]
[White "PotapovaM"]
[Black "The_Machine04"]
[Result "1-0"]
[WhiteElo "2511"]
[BlackElo "2283"]
[TimeControl "180+1"]
[EndTime "10:28:44 PDT"]
[Termination "PotapovaM won on time"]

1. d4 {[%clk 0:02:58.6]} 1... d6 {[%clk 0:02:58.8]} 2. e4 {[%clk 0:02:58.3]}
2... Nf6 {[%clk 0:02:58.2]} 3. Nc3 {[%clk 0:02:59]} 3... e5 {[%clk 0:02:57.5]}
4. Nf3 {[%clk 0:02:56.2]} 4... Nbd7 {[%clk 0:02:51.7]} 5. Bc4 {[%clk 0:02:56.4]}
5... Be7 {[%clk 0:02:49.6]} 6. O-O {[%clk 0:02:56.9]} 6... c6 {[%clk 0:02:47.5]}
7. a4 {[%clk 0:02:57.3]} 7... Qc7 {[%clk 0:02:43.3]} 8. Re1 {[%clk 0:02:57.3]}
8... h6 {[%clk 0:02:43.2]} 9. b3 {[%clk 0:02:50.5]} 9... Nf8 {[%clk 0:02:42.2]}
10. d5 {[%clk 0:02:40.5]} 10... c5 {[%clk 0:02:31.2]} 11. a5 {[%clk 0:02:38.3]}
11... g5 {[%clk 0:02:27.6]} 12. Nd2 {[%clk 0:02:30.2]} 12... Ng6 {[%clk
0:02:23.9]} 13. Bb5+ {[%clk 0:02:29.3]} 13... Kf8 {[%clk 0:02:20.8]} 14. Nf1
{[%clk 0:02:25.7]} 14... Kg7 {[%clk 0:02:16.2]} 15. Ne3 {[%clk 0:02:25.2]} 15...
Bf8 {[%clk 0:01:47.7]} 16. g3 {[%clk 0:02:23.5]} 16... Ne7 {[%clk 0:01:41.6]}
17. Kg2 {[%clk 0:01:47.1]} 17... Kg8 {[%clk 0:00:58.6]} 18. Rh1 {[%clk
0:01:46.5]} 18... Bg7 {[%clk 0:00:50.7]} 19. h4 {[%clk 0:01:46]} 19... g4 {[%clk
0:00:48.5]} 20. h5 {[%clk 0:01:44]} 20... Kh7 {[%clk 0:00:37.5]} 21. Rh4 {[%clk
0:01:43.6]} 21... Rg8 {[%clk 0:00:32.3]} 22. Be2 {[%clk 0:01:42.7]} 22... Bf8
{[%clk 0:00:30.7]} 23. Nc4 {[%clk 0:01:42.6]} 23... Qd7 {[%clk 0:00:23.3]} 24.
Be3 {[%clk 0:01:27.6]} 24... Kh8 {[%clk 0:00:19.9]} 25. Qd2 {[%clk 0:01:27.1]}
25... Kh7 {[%clk 0:00:19.8]} 26. Qd3 {[%clk 0:01:09.2]} 26... Kh8 {[%clk
0:00:18.5]} 27. Bd2 {[%clk 0:01:03.6]} 27... Nh7 {[%clk 0:00:16.7]} 28. Be3
{[%clk 0:00:56.5]} 28... Rb8 {[%clk 0:00:08.6]} 29. Qd1 {[%clk 0:00:56.9]} 29...
Nf6 {[%clk 0:00:07.1]} 30. Ra2 {[%clk 0:00:52.5]} 30... Kh7 {[%clk 0:00:05.8]}
31. Na3 {[%clk 0:00:49.6]} 31... a6 {[%clk 0:00:05.2]} 32. Nc4 {[%clk
0:00:49.1]} 32... Qd8 {[%clk 0:00:03.9]} 33. Nb6 {[%clk 0:00:48.7]} 33... Bd7
{[%clk 0:00:03.1]} 34. Nb1 {[%clk 0:00:46.2]} 34... Nc8 {[%clk 0:00:01.5]} 35.
Nxd7 {[%clk 0:00:43]} 35... Qxd7 {[%clk 0:00:01.4]} 36. Nd2 {[%clk 0:00:42.6]}
1-0

[Event "*** SCC Grand Prix: Titled Tuesday Blitz"]
[Site "Chess.com"]
[Date "2020.07.07"]
[Round "3"]
[White "Trickov"]
[Black "bmt011"]
[Result "1-0"]
[WhiteElo "2331"]
[BlackElo "2116"]
[TimeControl "180+1"]
[EndTime "10:28:44 PDT"]
[Termination "Trickov won on time"]

1. d4 {[%clk 0:02:58.3]} 1... Nf6 {[%clk 0:02:58.5]} 2. Nf3 {[%clk 0:02:57.9]}
2... e6 {[%clk 0:02:57.9]} 3. g3 {[%clk 0:02:57.9]} 3... b5 {[%clk 0:02:51.6]}
4. Bg2 {[%clk 0:02:58.4]} 4... Bb7 {[%clk 0:02:50.7]} 5. O-O {[%clk 0:02:58.9]}
5... d5 {[%clk 0:02:44.1]} 6. a4 {[%clk 0:02:59.3]} 6... a6 {[%clk 0:02:43.3]}
7. b3 {[%clk 0:02:54.3]} 7... Nbd7 {[%clk 0:02:38.7]} 8. c4 {[%clk 0:02:52.6]}
8... bxc4 {[%clk 0:02:29.5]} 9. bxc4 {[%clk 0:02:51.8]} 9... dxc4 {[%clk
0:02:27.7]} 10. Qc2 {[%clk 0:02:46.6]} 10... c5 {[%clk 0:02:22.2]} 11. Ba3
{[%clk 0:02:41.3]} 11... Be7 {[%clk 0:02:13]} 12. dxc5 {[%clk 0:02:29]} 12...
O-O {[%clk 0:01:33.1]} 13. Qxc4 {[%clk 0:02:20.8]} 13... Rc8 {[%clk 0:01:29.7]}
14. Rd1 {[%clk 0:02:15.4]} 14... Qc7 {[%clk 0:01:24.9]} 15. Nbd2 {[%clk
0:02:09.6]} 15... Bxc5 {[%clk 0:00:57.4]} 16. Bxc5 {[%clk 0:02:07.9]} 16... Qxc5
{[%clk 0:00:51.2]} 17. Rdc1 {[%clk 0:01:51.1]} 17... Qa5 {[%clk 0:00:38.2]} 18.
Qf4 {[%clk 0:01:31.6]} 18... Nd5 {[%clk 0:00:31.6]} 19. Qd6 {[%clk 0:01:20.6]}
19... N7f6 {[%clk 0:00:21.6]} 20. Nc4 {[%clk 0:01:15.8]} 20... Qd8 {[%clk
0:00:17.2]} 21. Qe5 {[%clk 0:00:57.6]} 21... Rc5 {[%clk 0:00:14.1]} 22. Nd6
{[%clk 0:00:53.4]} 22... Rxc1+ {[%clk 0:00:10.9]} 23. Rxc1 {[%clk 0:00:52.5]}
23... Ba8 {[%clk 0:00:11.3]} 24. Nc4 {[%clk 0:00:31.7]} 24... Qb8 {[%clk
0:00:10.8]} 25. Qa1 {[%clk 0:00:29.8]} 25... Rc8 {[%clk 0:00:09.3]} 26. Nfe5
{[%clk 0:00:28.2]} 26... Qb3 {[%clk 0:00:07.5]} 27. a5 {[%clk 0:00:26.7]} 27...
Nb4 {[%clk 0:00:01.7]} 28. Nb6 {[%clk 0:00:25.5]} 1-0

[Event "*** SCC Grand Prix: Titled Tuesday Blitz"]
[Site "Chess.com"]
[Date "2020.07.07"]
[Round "3"]
[White "dalmatinac101"]
[Black "Koksik_13"]
[Result "1-0"]
[WhiteElo "2811"]
[BlackElo "2615"]
[TimeControl "180+1"]
[EndTime "10:28:45 PDT"]
[Termination "dalmatinac101 won by checkmate"]

1. e4 {[%clk 0:02:53.2]} 1... e6 {[%clk 0:03:00]} 2. d4 {[%clk 0:02:52.8]} 2...
d5 {[%clk 0:03:00.4]} 3. Nc3 {[%clk 0:02:53.1]} 3... Bb4 {[%clk 0:02:59.8]} 4.
e5 {[%clk 0:02:53.4]} 4... c5 {[%clk 0:03:00.2]} 5. a3 {[%clk 0:02:54]} 5...
Bxc3+ {[%clk 0:03:00.8]} 6. bxc3 {[%clk 0:02:54.9]} 6... Ne7 {[%clk 0:03:01.5]}
7. Qg4 {[%clk 0:02:52.6]} 7... cxd4 {[%clk 0:03:00.6]} 8. Qxg7 {[%clk
0:02:52.1]} 8... Rg8 {[%clk 0:03:00.6]} 9. Qxh7 {[%clk 0:02:52.4]} 9... Qc7
{[%clk 0:03:01.1]} 10. Ne2 {[%clk 0:02:47.4]} 10... Nbc6 {[%clk 0:03:01.2]} 11.
f4 {[%clk 0:02:45.8]} 11... Bd7 {[%clk 0:03:01.2]} 12. Qd3 {[%clk 0:02:45]}
12... dxc3 {[%clk 0:03:01.3]} 13. Nxc3 {[%clk 0:02:45.9]} 13... a6 {[%clk
0:03:01.4]} 14. Ne2 {[%clk 0:02:45.7]} 14... Rc8 {[%clk 0:02:59.3]} 15. Rb1
{[%clk 0:02:41.9]} 15... Na5 {[%clk 0:02:59]} 16. Nd4 {[%clk 0:02:40.2]} 16...
Rh8 {[%clk 0:02:36.4]} 17. h4 {[%clk 0:02:38.5]} 17... Nec6 {[%clk 0:02:34.2]}
18. Nf3 {[%clk 0:02:35.8]} 18... Ne7 {[%clk 0:02:33.5]} 19. Bd2 {[%clk
0:02:33.1]} 19... Nc4 {[%clk 0:02:29.9]} 20. Rh3 {[%clk 0:02:19]} 20... Ba4
{[%clk 0:02:01.6]} 21. Rb4 {[%clk 0:02:07.9]} 21... b5 {[%clk 0:01:59]} 22. Nd4
{[%clk 0:02:04.4]} 22... Nc6 {[%clk 0:01:58.3]} 23. Nxc6 {[%clk 0:02:01.6]}
23... Qxc6 {[%clk 0:01:59.2]} 24. Bc1 {[%clk 0:01:33.3]} 24... Qc5 {[%clk
0:01:54.5]} 25. h5 {[%clk 0:01:25.8]} 25... Na5 {[%clk 0:01:27]} 26. Rxa4 {[%clk
0:01:09.4]} 26... bxa4 {[%clk 0:01:26.1]} 27. Qxa6 {[%clk 0:01:04.6]} 27... Qxc2
{[%clk 0:00:58.9]} 28. Bb5+ {[%clk 0:01:04]} 28... Kf8 {[%clk 0:00:58.9]} 29.
Bd2 {[%clk 0:00:51]} 29... Qe4+ {[%clk 0:00:45.1]} 30. Re3 {[%clk 0:00:44.3]}
30... Qb1+ {[%clk 0:00:40.8]} 31. Kf2 {[%clk 0:00:41]} 31... Rc2 {[%clk
0:00:24.5]} 32. Qa8+ {[%clk 0:00:26.4]} 32... Ke7 {[%clk 0:00:19.6]} 33. Qa7+
{[%clk 0:00:24.3]} 33... Kf8 {[%clk 0:00:19.7]} 34. Qb8+ {[%clk 0:00:19.9]}
34... Ke7 {[%clk 0:00:18.3]} 35. Qd6# {[%clk 0:00:19.5]} 1-0